bitfinex-derivatives/quotes_SOLF0:USTF0_20260202
["timestamp","ask_amount","ask_price","bid_price","bid_amount"]
[1770013465783,17.53402694,99.645,99.559,158.45564189]
[1770013466083,17.53402694,99.645,99.566,9.0495]
[1770013468380,17.53402694,99.645,99.559,17.67444189]
[1770013468581,8.38722132,99.63,99.535,17.67444189]
[1770013468783,17.53402694,99.629,99.535,17.67444189]
[1770013469686,8.38722132,99.61,99.535,17.67444189]
[1770013469884,8.38722132,99.61,99.472,140.9049]
[1770013469885,8.38722132,99.59,99.505,17.67444189]
[1770013470190,17.53402694,99.589,99.505,17.67444189]
[1770013470484,17.53402694,99.564,99.474,17.67444189]
[1770013470984,17.53402694,99.591,99.474,17.67444189]
[1770013471185,17.53402694,99.591,99.476,17.67444189]
[1770013471384,17.53402694,99.619,99.498,17.67444189]
[1770013471584,17.53402694,99.619,99.506,9.055]
[1770013471784,17.53402694,99.619,99.513,17.67444189]
[1770013471988,17.53402694,99.619,99.5,8.38722132]
[1770013471989,17.53402694,99.619,99.515,17.67444189]
[1770013472489,17.53402694,99.617,99.515,17.67444189]
[1770013472785,26.57912694,99.616,99.515,17.67444189]
[1770013472978,17.53402694,99.609,99.515,17.67444189]
[1770013473179,17.53402694,99.594,99.515,17.67444189]
[1770013473882,17.53402694,99.621,99.515,17.67444189]
[1770013474387,17.53402694,99.621,99.516,17.67444189]
[1770013475586,17.53402694,99.621,99.518,17.67444189]
[1770013475782,17.53402694,99.621,99.514,400.64]
[1770013475783,17.53402694,99.645,99.543,17.67444189]
[1770013475988,17.53402694,99.645,99.547,17.67444189]
[1770013476891,17.53402694,99.645,99.557,17.67444189]
[1770013477691,8.3881112,99.67,99.559,17.67444189]
[1770013477992,18.9219592,99.669,99.559,17.67444189]
[1770013478594,18.9219592,99.667,99.559,17.67444189]
[1770013479287,18.9219592,99.665,99.559,17.67444189]
[1770013479492,18.9219592,99.649,99.559,17.67444189]
[1770013480188,18.9219592,99.629,99.542,17.43344102]
[1770013480390,140.6684,99.64,99.491,200.82]
[1770013480391,18.9219592,99.602,99.491,218.25344102]
[1770013480591,18.9219592,99.569,99.491,17.43344102]
[1770013480993,140.7242,99.6,99.434,17.43344102]
[1770013480994,18.9219592,99.519,99.434,17.43344102]
[1770013482889,18.9219592,99.558,99.44,17.43344102]
[1770013483088,18.9219592,99.549,99.445,17.43344102]
[1770013483495,18.9219592,99.549,99.45,17.43344102]
[1770013484094,18.9219592,99.549,99.453,9.0598]
[1770013485597,18.9219592,99.549,99.47,17.43344102]
[1770013486089,18.9219592,99.549,99.472,17.43344102]
[1770013486297,18.9219592,99.549,99.449,140.9373]
[1770013486499,18.9219592,99.529,99.448,17.43344102]
[1770013487394,18.9219592,99.529,99.448,167.43264102]
[1770013488591,18.07302252,99.554,99.448,140.9389]
[1770013488790,18.07302252,99.546,99.451,140.9347]
[1770013488991,18.07302252,99.546,99.446,18.52541484]
[1770013489188,18.07302252,99.546,99.449,9.0602]
[1770013489498,18.07302252,99.546,99.446,18.52541484]
[1770013489499,18.07302252,99.546,99.465,159.44011484]
[1770013489702,18.07302252,99.546,99.466,18.52541484]
[1770013489898,18.07302252,99.546,99.475,140.8998]
[1770013490098,18.07302252,99.546,99.473,18.52541484]
[1770013490694,18.07302252,99.572,99.497,140.8684]
[1770013490896,18.07302252,99.572,99.494,18.52541484]
[1770013491204,8.3881112,99.57,99.503,18.52541484]
[1770013491694,18.07302252,99.587,99.503,18.52541484]
[1770013492095,18.07302252,99.587,99.48,18.52541484]
[1770013492499,18.07302252,99.566,99.48,18.52541484]
[1770013492700,8.3881112,99.55,99.48,18.52541484]
[1770013492993,18.07302252,99.564,99.48,18.52541484]
[1770013493199,8.3881112,99.57,99.48,18.52541484]
[1770013493400,18.07302252,99.588,99.48,18.52541484]
[1770013493897,18.07302252,99.569,99.48,18.52541484]
[1770013495200,18.07302252,99.593,99.494,18.52541484]
[1770013495499,140.7155,99.606,99.494,18.52541484]
[1770013495500,18.07302252,99.569,99.494,18.52541484]
[1770013495803,8.3881112,99.56,99.494,18.52541484]
[1770013496297,18.07302252,99.559,99.46,18.52541484]
[1770013497302,18.07302252,99.556,99.46,18.52541484]
[1770013497607,18.07302252,99.499,99.39,18.52541484]
[1770013497807,18.07302252,99.499,99.392,9.0653]
[1770013498001,8.3881112,99.48,99.393,18.52541484]
[1770013498902,18.07302252,99.479,99.393,18.52541484]
[1770013499203,18.07302252,99.507,99.393,18.52541484]
[1770013499501,18.07302252,99.507,99.405,18.52541484]
[1770013500102,18.07302252,99.507,99.41,18.52541484]
[1770013500606,26.46113372,99.49,99.41,18.52541484]
[1770013500796,8.3881112,99.49,99.41,18.52541484]
[1770013500998,18.07302252,99.489,99.41,18.52541484]
[1770013501407,18.07302252,99.469,99.385,18.52541484]
[1770013501602,8.3881112,99.47,99.385,18.52541484]
[1770013501803,8.3881112,99.49,99.403,18.52541484]
[1770013502001,18.07302252,99.495,99.403,18.52541484]
[1770013502800,18.07302252,99.495,99.404,18.52541484]
[1770013503496,140.7826,99.559,99.389,400.98]
[1770013503497,8.3881112,99.53,99.437,18.52541484]
[1770013503702,18.07302252,99.549,99.437,18.52541484]
[1770013504102,18.07302252,99.546,99.441,18.52541484]
[1770013504402,18.07302252,99.509,99.404,18.52541484]
[1770013505302,18.07302252,99.489,99.373,18.52541484]
[1770013505607,18.07302252,99.489,99.379,18.52541484]
[1770013506103,18.07302252,99.469,99.379,18.52541484]
[1770013506308,18.07302252,99.489,99.386,18.52541484]
[1770013506608,18.07302252,99.469,99.386,18.52541484]
[1770013506808,26.46113372,99.45,99.366,401.04]
[1770013507107,18.07302252,99.449,99.366,401.04]
[1770013507306,18.07302252,99.449,99.314,141.1283]
[1770013507307,18.07302252,99.429,99.336,9.0705]
[1770013507500,18.07302252,99.409,99.333,18.52541484]
[1770013507701,18.04984461,99.432,99.335,18.83116669]
[1770013507899,18.04984461,99.455,99.366,18.83116669]
[1770013508100,18.04984461,99.479,99.388,18.83116669]
[1770013508299,18.04984461,99.479,99.396,9.065]
[1770013508809,18.04984461,99.479,99.401,9.0646]
[1770013509107,18.04984461,99.459,99.372,18.83116669]
[1770013509906,18.04984461,99.459,99.38,141.0346]
[1770013510105,18.04984461,99.459,99.372,18.83116669]
[1770013510106,9.0594,99.458,99.372,18.83116669]
[1770013510407,26.43795581,99.44,99.356,419.95116669]
[1770013510605,8.3881112,99.42,99.356,401.12]
[1770013510911,18.04984461,99.419,99.34,9.0701]
[1770013511409,8.3881112,99.4,99.332,18.83116669]
[1770013511606,8.3881112,99.4,99.302,401.18]
[1770013511607,18.04984461,99.399,99.308,18.83116669]
[1770013511811,18.04984461,99.399,99.326,141.1121]
[1770013512011,18.04984461,99.399,99.324,159.94586669]
[1770013512209,18.04984461,99.399,99.33,141.1061]
[1770013512413,8.3881112,99.42,99.343,141.0875]
[1770013512604,26.43795581,99.42,99.343,141.0875]
[1770013512808,26.43795581,99.42,99.331,18.83116669]
[1770013513013,18.04984461,99.419,99.331,18.83116669]
[1770013513213,18.04984461,99.399,99.303,18.83116669]
[1770013515313,8.3881112,99.42,99.308,18.83116669]
[1770013515512,8.3881112,99.42,99.31,18.83116669]
[1770013516418,18.04984461,99.419,99.31,18.83116669]
[1770013517214,8.3881112,99.4,99.31,18.83116669]
[1770013517915,18.04984461,99.399,99.31,18.83116669]
[1770013518620,140.9649,99.43,99.31,18.83116669]
[1770013518621,18.04984461,99.42,99.31,18.83116669]
[1770013518820,18.04984461,99.419,99.31,18.83116669]
[1770013521022,18.04984461,99.399,99.312,18.83116669]
[1770013521819,18.04984461,99.339,99.241,18.83116669]
[1770013522123,141.0513,99.369,99.207,141.28]
[1770013522124,8.3881112,99.31,99.214,18.83116669]
[1770013522516,8.3881112,99.29,99.214,18.83116669]
[1770013522717,26.43795581,99.29,99.214,18.83116669]
[1770013522925,18.04984461,99.269,99.139,141.3774]
[1770013523223,8.3881112,99.21,99.147,18.83116669]
[1770013523816,8.3881112,99.21,99.11,141.4183]
[1770013523817,18.04984461,99.257,99.154,18.83116669]
[1770013524018,18.04984461,99.257,99.158,18.83116669]
[1770013524219,8.3881112,99.24,99.158,18.83116669]
[1770013524419,18.04984461,99.257,99.158,18.83116669]
[1770013524621,18.04984461,99.239,99.158,18.83116669]
[1770013524826,18.04984461,99.268,99.162,18.83116669]
[1770013525325,8.3881112,99.23,99.162,18.83116669]
[1770013525521,26.43795581,99.23,99.114,18.83116669]
[1770013525725,18.04984461,99.229,99.114,18.83116669]
[1770013525920,8.3881112,99.21,99.114,18.83116669]
[1770013526121,18.04984461,99.222,99.114,18.83116669]
[1770013526332,141.2397,99.237,99.114,18.83116669]
[1770013526333,18.04984461,99.209,99.114,18.83116669]
[1770013526625,8.3881112,99.2,99.119,18.83116669]
[1770013526825,8.3881112,99.2,99.069,141.4776]
[1770013526826,18.04984461,99.179,99.094,18.83116669]
[1770013527022,18.04984461,99.139,99.043,18.83116669]
[1770013527227,18.04984461,99.119,99.028,18.83116669]
[1770013527421,18.04984461,99.119,98.989,141.592]
[1770013527422,8.3881112,99.12,99.007,18.83116669]
[1770013527626,18.04984461,99.079,99.003,1.7563472]
[1770013527825,8.3881112,99.1,99.004,18.83116669]
[1770013528223,141.4407,99.096,99.004,18.83116669]
[1770013528426,18.04984461,99.099,99.013,18.83116669]
[1770013529230,18.04984461,99.086,98.987,401.7]
[1770013529426,18.04984461,99.042,98.965,2.77948636]
[1770013529729,18.04984461,99.04,98.965,2.77948636]
[1770013529929,18.04984461,99.068,98.982,18.83116669]
[1770013530627,18.04984461,99.095,99.002,18.83116669]
[1770013532127,18.04984461,99.082,98.975,18.83116669]
[1770013532328,18.04984461,99.082,98.934,141.6711]
[1770013532329,18.04984461,99.044,98.931,141.6751]
[1770013532528,18.04984461,99.039,98.931,141.6751]
[1770013532832,18.04984461,99.039,98.931,141.6754]
[1770013533022,18.04984461,99.039,98.92,18.83116669]
[1770013533223,31.64037905,99.04,98.92,18.83116669]
[1770013533224,18.04984461,99.037,98.92,18.83116669]
[1770013533634,18.04984461,99.037,98.921,141.6895]
[1770013533832,18.04984461,99.009,98.917,402.14]
[1770013534024,18.04984461,99.009,98.926,18.83116669]
[1770013534629,18.04984461,99.009,98.895,18.83116669]
[1770013534829,18.04984461,98.999,98.895,18.83116669]
[1770013536529,18.04984461,98.999,98.897,141.7233]
[1770013536726,18.04984461,98.999,98.88,402.32]
[1770013536727,18.04984461,98.992,98.88,402.32]
[1770013536931,18.04984461,98.959,98.868,18.83116669]
[1770013537243,18.04984461,98.95,98.835,18.83116669]
[1770013537536,18.04984461,98.936,98.835,18.83116669]
[1770013537733,17.87687689,98.961,98.839,16.93359421]
[1770013538228,17.87687689,98.939,98.839,16.93359421]
[1770013538430,17.87687689,98.934,98.839,16.93359421]
[1770013538840,17.87687689,98.96,98.839,16.93359421]
[1770013539328,17.87687689,98.956,98.839,16.93359421]
[1770013539527,17.87687689,98.956,98.841,16.93359421]
[1770013539732,17.87687689,98.984,98.855,16.93359421]
[1770013539928,17.87687689,98.984,98.861,16.93359421]
[1770013540534,17.87687689,98.984,98.868,16.93359421]
[1770013540838,17.87687689,98.972,98.868,16.93359421]
[1770013541436,17.87687689,98.968,98.868,16.93359421]
[1770013541631,17.87687689,98.968,98.596,23.29815667]
[1770013541632,141.7067,98.91,98.815,16.93359421]
[1770013541830,141.7067,98.91,98.754,283.8575]
[1770013541831,141.7538,98.877,98.765,16.93359421]
[1770013542037,141.692,98.92,98.795,16.93359421]
[1770013542232,35.75375378,98.928,98.795,16.93359421]
[1770013542436,35.75375378,98.928,98.802,16.93359421]
[1770013542742,35.75375378,98.928,98.804,16.93359421]
[1770013542935,35.75375378,98.928,98.82,16.93359421]
[1770013543134,35.75375378,98.928,98.822,16.93359421]
[1770013544134,35.75375378,98.928,98.844,16.93359421]
[1770013545935,35.75375378,98.928,98.862,16.93359421]
[1770013546136,17.87687689,98.987,98.862,16.93359421]
[1770013546548,17.87687689,98.97,98.862,16.93359421]
[1770013546933,17.87687689,98.955,98.836,16.93359421]
[1770013547132,17.87687689,98.955,98.789,141.8787]
[1770013547133,141.6973,98.916,98.804,16.93359421]
[1770013547343,17.87687689,98.915,98.804,16.93359421]
[1770013547541,17.87687689,98.915,98.81,18.54832813]
[1770013547737,17.87687689,98.915,98.813,18.54832813]
[1770013548744,17.87687689,98.915,98.8,141.8626]
[1770013548745,17.87687689,98.915,98.815,18.54832813]
[1770013549147,17.33283807,98.941,98.835,18.54832813]
[1770013549848,17.33283807,98.941,98.85,18.54832813]
[1770013551146,17.33283807,98.967,98.87,18.54832813]
[1770013552044,17.33283807,98.954,98.87,18.54832813]
[1770013552748,17.33283807,98.988,98.87,18.54832813]
[1770013552946,17.33283807,98.96,98.87,18.54832813]
[1770013553139,17.33283807,98.959,98.87,18.54832813]
[1770013553538,17.33283807,98.932,98.817,18.54832813]
[1770013553749,141.7035,98.912,98.817,18.54832813]
[1770013553949,17.33283807,98.911,98.817,18.54832813]
[1770013554248,17.33283807,98.903,98.817,18.54832813]
[1770013554948,17.33283807,98.901,98.817,18.54832813]
[1770013557946,17.33283807,98.901,98.819,18.54832813]
[1770013558143,17.33283807,98.929,98.829,18.54832813]
[1770013558544,17.33283807,98.927,98.831,18.54832813]
[1770013560254,141.6432,98.954,98.831,18.54832813]
[1770013560255,17.33283807,98.917,98.831,18.54832813]
[1770013561052,17.33283807,98.888,98.807,18.54832813]
[1770013561348,17.33283807,98.828,98.729,18.54832813]
[1770013561546,17.33283807,98.807,98.699,18.54832813]
[1770013561745,17.33283807,98.799,98.684,1.76181568]
[1770013561948,17.33283807,98.792,98.684,1.76181568]
[1770013562149,17.33283807,98.792,98.685,18.54832813]
[1770013562351,17.33283807,98.779,98.685,18.54832813]
[1770013562550,17.33283807,98.755,98.659,18.54832813]
[1770013562951,17.33283807,98.779,98.659,18.54832813]
[1770013563458,17.33283807,98.779,98.657,142.0687]
[1770013563459,17.33283807,98.802,98.685,18.54832813]
[1770013563654,17.33283807,98.774,98.685,18.54832813]
[1770013564356,17.33283807,98.801,98.685,18.54832813]
[1770013564746,17.33283807,98.801,98.689,18.54832813]
[1770013564949,17.33283807,98.789,98.689,18.54832813]
[1770013565356,17.33283807,98.771,98.655,18.54832813]
[1770013565546,17.33283807,98.741,98.633,301.18832813]
[1770013565955,17.33283807,98.733,98.634,18.54832813]
[1770013566850,26.45693807,98.754,98.634,18.54832813]
[1770013567055,141.923,98.759,98.635,18.54832813]
[1770013567056,17.33283807,98.747,98.635,18.54832813]
[1770013567258,17.33283807,98.727,98.635,18.54832813]
[1770013567457,17.33283807,98.72,98.599,18.54832813]
[1770013567857,17.33283807,98.72,98.605,16.89693143]
[1770013568257,17.46280196,98.719,98.605,16.89693143]
[1770013568654,17.46280196,98.717,98.605,16.89693143]
[1770013568863,17.46280196,98.71,98.605,16.89693143]
[1770013569061,17.46280196,98.71,98.621,16.89693143]
[1770013569260,141.9586,98.734,98.598,403.7]
[1770013569261,17.46280196,98.704,98.598,403.7]
[1770013569457,17.46280196,98.704,98.604,16.89693143]
[1770013569663,17.46280196,98.704,98.606,16.89693143]
[1770013569957,17.46280196,98.704,98.61,16.89693143]
[1770013570157,141.9743,98.723,98.621,16.89693143]
[1770013570460,17.46280196,98.722,98.621,16.89693143]
[1770013570661,17.46280196,98.75,98.642,16.89693143]
[1770013570862,17.46280196,98.75,98.645,16.89693143]
[1770013571165,17.46280196,98.775,98.687,16.89693143]
[1770013571353,17.46280196,98.8,98.702,16.89693143]
[1770013571558,17.46280196,98.8,98.707,16.89693143]
[1770013571753,17.46280196,98.8,98.674,403.92]
[1770013571955,17.46280196,98.735,98.624,16.89693143]
[1770013572159,17.46280196,98.718,98.624,16.89693143]
[1770013572460,17.46280196,98.693,98.598,16.89693143]
[1770013572662,17.46280196,98.682,98.588,403.92]
[1770013572861,17.46280196,98.682,98.58,142.1799]
[1770013573058,17.46280196,98.682,98.57,16.89693143]
[1770013573259,17.46280196,98.682,98.598,16.89693143]
[1770013573663,17.46280196,98.682,98.562,142.2051]
[1770013573664,17.46280196,98.679,98.571,16.89693143]
[1770013573856,17.46280196,98.679,98.572,142.1912]
[1770013574062,17.46280196,98.679,98.571,16.89693143]
[1770013574467,17.46280196,98.676,98.571,16.89693143]
[1770013574959,17.46280196,98.671,98.571,16.89693143]
[1770013575159,142.0415,98.677,98.522,142.2636]
[1770013575160,17.46280196,98.646,98.545,16.89693143]
[1770013575464,17.46280196,98.643,98.545,16.89693143]
[1770013575766,17.46280196,98.672,98.577,16.89693143]
[1770013575961,17.46280196,98.672,98.588,16.89693143]
[1770013576168,17.46280196,98.701,98.606,16.89693143]
[1770013577468,9.1253,98.74,98.606,16.89693143]
[1770013577469,17.46280196,98.726,98.606,16.89693143]
[1770013577664,17.46280196,98.726,98.617,142.1256]
[1770013577862,17.46280196,98.726,98.618,16.89693143]
[1770013578064,17.46280196,98.749,98.618,16.89693143]
[1770013578271,17.46280196,98.738,98.618,16.89693143]
[1770013578669,17.46280196,98.738,98.623,16.89693143]
[1770013578972,17.46280196,98.764,98.64,16.89693143]
[1770013579171,17.46280196,98.764,98.607,404.18]
[1770013579172,17.46280196,98.723,98.611,16.89693143]
[1770013579367,17.46280196,98.699,98.611,16.89693143]
[1770013579769,17.46280196,98.723,98.611,16.89693143]
[1770013579971,17.46280196,98.717,98.611,16.89693143]
[1770013580368,17.46280196,98.71,98.611,16.89693143]
[1770013580969,21.13386917,98.73,98.611,16.89693143]
[1770013581270,17.46280196,98.764,98.654,16.89693143]
[1770013581465,21.13386917,98.79,98.664,16.89693143]
[1770013581466,17.46280196,98.79,98.664,16.89693143]
[1770013581866,17.46280196,98.79,98.69,16.89693143]
[1770013582072,17.46280196,98.812,98.692,16.89693143]
[1770013582468,17.46280196,98.797,98.692,16.89693143]
[1770013583776,17.46280196,98.797,98.7,16.89693143]
[1770013583968,141.809,98.838,98.7,16.89693143]
[1770013583969,17.46280196,98.829,98.7,16.89693143]
[1770013584168,17.46280196,98.824,98.704,16.89693143]
[1770013584570,159.30570196,98.815,98.705,16.89693143]
[1770013584865,17.46280196,98.839,98.723,141.9738]
[1770013585066,17.46280196,98.839,98.726,16.89693143]
[1770013585777,17.46280196,98.89,98.77,16.89693143]
[1770013585972,17.46280196,98.89,98.772,16.89693143]
[1770013586172,17.46280196,98.89,98.779,16.89693143]
[1770013586873,17.46280196,98.89,98.782,16.89693143]
[1770013587075,17.46280196,98.89,98.786,16.89693143]
[1770013587375,17.46280196,98.89,98.791,16.89693143]
[1770013588377,17.46280196,98.916,98.796,16.89693143]
[1770013588567,17.46280196,98.916,98.804,16.89693143]
[1770013590075,17.46280196,98.916,98.807,16.89693143]
[1770013590276,17.46280196,98.916,98.821,16.89693143]
[1770013590471,17.46280196,98.916,98.813,141.8443]
[1770013590472,17.46280196,98.945,98.827,16.89693143]
[1770013590670,17.46280196,98.945,98.832,16.89693143]
[1770013590871,17.46280196,98.945,98.839,16.89693143]
[1770013591266,17.46280196,98.933,98.839,16.89693143]
[1770013591677,17.46280196,98.933,98.843,16.89693143]
[1770013591875,17.46280196,98.961,98.873,16.89693143]
[1770013592072,17.46280196,98.989,98.879,16.89693143]
[1770013592274,17.46280196,98.989,98.905,16.89693143]
[1770013592476,17.46280196,98.999,98.909,16.89693143]
[1770013592776,17.46280196,98.99,98.881,16.89693143]
[1770013592976,17.46280196,98.986,98.881,16.89693143]
[1770013594079,17.46280196,98.986,98.896,16.89693143]
[1770013594675,17.46280196,98.986,98.908,16.89693143]
[1770013595076,17.46280196,98.984,98.875,16.89693143]
[1770013595272,17.46280196,98.97,98.875,16.89693143]
[1770013595874,17.46280196,98.97,98.88,16.89693143]
[1770013596276,17.46280196,98.97,98.888,16.89693143]
[1770013596679,17.46280196,98.97,98.893,167.73773143]
[1770013596875,17.46280196,98.995,98.905,16.89693143]
[1770013598985,17.46280196,98.995,98.872,141.7597]
[1770013598986,17.46280196,98.995,98.893,141.7289]
[1770013599684,17.46280196,98.995,98.882,141.7457]
[1770013599685,17.46280196,98.995,98.909,159.65820294]
[1770013599885,17.46280196,98.995,98.913,141.7013]
[1770013600588,17.06508079,99.02,98.928,17.95180294]
[1770013600883,17.06508079,99.02,98.913,141.7013]
[1770013600884,17.06508079,99.02,98.929,159.62900294]
[1770013601075,17.06508079,99.02,98.946,17.95180294]
[1770013601278,17.06508079,99.02,98.929,141.6772]
[1770013601475,17.06508079,99.02,98.924,17.95180294]
[1770013602376,17.06508079,99.02,98.927,17.95180294]
[1770013602686,17.06508079,99.02,98.926,141.6815]
[1770013602687,17.06508079,99.02,98.94,141.6622]
[1770013602883,17.06508079,99.02,98.944,9.1064]
[1770013603083,17.06508079,99.02,98.937,17.95180294]
[1770013603287,17.06508079,99.02,98.913,141.7013]
[1770013603482,17.06508079,99.014,98.913,17.95180294]
[1770013603689,17.06508079,99.014,98.915,17.95180294]
[1770013604088,17.06508079,99.009,98.915,17.95180294]
[1770013604383,17.06508079,99.003,98.892,17.95180294]
[1770013604583,17.06508079,99.003,98.891,141.7314]
[1770013604584,17.06508079,99.003,98.899,17.95180294]
[1770013604789,17.06508079,99.0,98.899,17.95180294]
[1770013605083,141.5714,99.004,98.873,141.7578]
[1770013605084,17.06508079,98.996,98.873,141.7578]
[1770013605288,17.06508079,98.944,98.852,141.7879]
[1770013605580,17.06508079,98.944,98.849,141.7926]
[1770013605782,17.06508079,98.944,98.849,17.95180294]
[1770013605984,17.06508079,98.944,98.857,9.1145]
[1770013606189,17.06508079,98.929,98.821,17.95180294]
[1770013606383,17.06508079,98.918,98.821,17.95180294]
[1770013607289,17.42661699,98.915,98.821,17.95180294]
[1770013607985,141.7068,98.91,98.821,17.95180294]
[1770013608189,17.42661699,98.899,98.795,17.46689553]
[1770013608385,17.42661699,98.899,98.797,141.8674]
[1770013608690,17.42661699,98.899,98.805,17.46689553]
[1770013608886,17.42661699,98.894,98.805,17.46689553]
[1770013609683,17.42661699,98.884,98.786,403.4]
[1770013610086,17.42661699,98.884,98.786,420.86689553]
[1770013610290,17.42661699,98.884,98.787,17.46689553]
[1770013611692,9.1122,98.882,98.787,17.46689553]
[1770013611894,17.42661699,98.884,98.787,17.46689553]
[1770013612091,17.42661699,98.855,98.786,403.4]
[1770013612299,17.42661699,98.85,98.762,17.46689553]
[1770013612689,17.42661699,98.875,98.764,17.46689553]
[1770013612890,17.42661699,98.901,98.791,17.46689553]
[1770013613092,17.42661699,98.901,98.78,141.8919]
[1770013613093,17.42661699,98.901,98.799,17.46689553]
[1770013614797,17.42661699,98.929,98.806,17.46689553]
[1770013614998,17.42661699,98.928,98.808,17.46689553]
[1770013615198,26.53461699,98.928,98.808,17.46689553]
[1770013615398,17.42661699,98.928,98.808,17.46689553]
[1770013615898,17.42661699,98.928,98.816,17.46689553]
[1770013616400,17.42661699,98.928,98.824,17.46689553]
[1770013616897,17.42661699,98.928,98.829,17.46689553]
[1770013617100,17.42661699,98.926,98.829,17.46689553]
[1770013617699,26.53571699,98.916,98.829,17.46689553]
[1770013618798,17.42661699,98.916,98.829,17.46689553]
[1770013620292,17.42661699,98.916,98.808,17.46689553]
[1770013620488,17.42661699,98.916,98.81,17.46689553]
[1770013620690,8.50996762,98.91,98.81,17.46689553]
[1770013620894,17.42661699,98.916,98.821,17.46689553]
[1770013621700,17.42661699,98.909,98.821,17.46689553]
[1770013622195,17.42661699,98.929,98.823,17.46689553]
[1770013622698,17.42661699,98.909,98.807,403.54]
[1770013622904,17.42661699,98.889,98.8,17.46689553]
[1770013623400,17.42661699,98.869,98.776,17.46689553]
[1770013625002,17.42661699,98.869,98.777,9.1219]
[1770013625195,17.42661699,98.869,98.775,403.54]
[1770013625396,17.42661699,98.892,98.799,141.8634]
[1770013625598,17.42661699,98.918,98.819,17.46689553]
[1770013625805,17.42661699,98.909,98.819,17.46689553]
[1770013626401,17.42661699,98.909,98.82,39.57]
[1770013626698,17.42661699,98.909,98.821,17.46689553]
[1770013626902,141.6195,98.971,98.847,17.46689553]
[1770013626903,17.42661699,98.929,98.847,17.46689553]
[1770013627100,17.42661699,98.929,98.849,17.46689553]
[1770013627302,17.42661699,98.956,98.865,17.46689553]
[1770013627900,17.42661699,98.956,98.868,9.1134]
[1770013628296,17.42661699,98.956,98.865,17.46689553]
[1770013628297,17.42661699,98.956,98.881,17.3881403]
[1770013628497,16.6674256,98.989,98.885,17.3881403]
[1770013628699,16.6674256,98.989,98.907,17.3881403]
[1770013628902,16.6674256,98.989,98.909,17.3881403]
[1770013629195,16.6674256,98.989,98.905,141.7117]
[1770013629401,8.50996762,99.01,98.921,17.3881403]
[1770013629598,16.6674256,99.012,98.921,17.3881403]
[1770013629793,16.6674256,99.012,98.928,9.1079]
[1770013629999,16.6674256,99.012,98.928,150.7876]
[1770013630200,16.6674256,99.012,98.933,141.6725]
[1770013630396,16.6674256,99.042,98.952,17.3881403]
[1770013630596,16.6674256,99.042,98.959,17.3881403]
[1770013630796,8.50996762,99.06,98.958,141.6362]
[1770013630797,8.50996762,99.06,98.971,17.3881403]
[1770013631205,16.6674256,99.059,98.971,17.3881403]
[1770013631394,16.6674256,99.039,98.941,17.3881403]
[1770013632100,8.50996762,99.06,98.962,17.3881403]
[1770013632399,16.6674256,99.059,98.969,17.3881403]
[1770013632800,16.6674256,99.059,98.974,141.6134]
[1770013633001,16.6674256,99.059,98.944,141.6566]
[1770013633002,16.6674256,99.059,98.954,141.6425]
[1770013633198,16.6674256,99.059,98.955,17.3881403]
[1770013633401,16.6674256,99.059,98.954,141.6425]
[1770013633402,16.6674256,99.039,98.959,17.3881403]
[1770013634002,8.50996762,99.06,98.965,17.3881403]
[1770013634202,8.50996762,99.06,98.976,17.3881403]
[1770013634403,16.6674256,99.062,98.982,17.3881403]
[1770013635199,8.50996762,99.08,98.988,141.5927]
[1770013635406,16.6674256,99.079,98.989,17.3881403]
[1770013636802,16.6674256,99.079,98.98,17.3881403]
[1770013638003,16.6674256,99.079,98.992,17.3881403]
[1770013638202,16.6674256,99.079,99.0,17.3881403]
[1770013639308,16.6674256,99.059,98.977,17.3881403]
[1770013639898,16.6674256,99.059,98.95,403.2]
[1770013639899,16.6674256,99.059,98.954,17.3881403]
[1770013640101,16.6674256,99.039,98.954,17.3881403]
[1770013640306,8.50996762,99.02,98.954,17.3881403]
[1770013640508,8.50996762,99.02,98.908,141.7085]
[1770013640509,8.50996762,98.98,98.902,17.3881403]
[1770013640809,8.50996762,98.98,98.887,141.7381]
[1770013640810,8.50996762,99.0,98.913,159.0889403]
[1770013641010,25.17739322,99.0,98.913,159.0889403]
[1770013641203,25.17739322,99.0,98.921,17.3881403]
[1770013641403,16.6674256,99.0,98.924,17.3881403]
[1770013641599,16.6674256,99.0,98.887,141.7381]
[1770013641600,16.6674256,98.996,98.898,17.3881403]
[1770013641810,16.6674256,98.979,98.898,17.3881403]
[1770013642714,8.50996762,98.98,98.903,17.3881403]
[1770013643114,16.6674256,98.979,98.893,403.16]
[1770013643310,16.6674256,98.979,98.893,420.5481403]
[1770013644811,141.6805,98.928,98.822,17.3881403]
[1770013645113,16.6674256,98.916,98.835,17.3881403]
[1770013645310,16.6674256,98.939,98.837,17.3881403]
[1770013646016,16.6674256,98.937,98.837,17.3881403]
[1770013646717,16.6674256,98.959,98.837,17.3881403]
[1770013647311,9.1053,98.957,98.837,17.3881403]
[1770013647514,16.6674256,98.959,98.837,17.3881403]
[1770013648318,16.6674256,98.959,98.849,17.3881403]
[1770013648518,141.6074,98.979,98.849,17.3881403]